[Event "Olaine Open Rapid 2018"]
[Site "Olaine"]
[Date "2018.11.25"]
[Round "8.3"]
[White "Mustaps, Matiss"]
[Black "Levchenkov, Vitaly"]
[Result "1-0"]
[WhiteElo "2354"]
[BlackElo "2150"]
[PlyCount "111"]
[EventDate "2018.11.24"]
[EventType "swiss"]
[EventCountry "LAT"]
[TimeControl "600+5"]
[WhiteClock "0:00:15"]
[BlackClock "0:01:28"]

1. e4 {[%emt 0:00:00]} c5 {[%emt 0:00:00]} 2. Nf3 {[%emt 0:00:00]} Nc6 {[%emt 0:00:00]} 3. d3 {[%emt 0:00:02]} g6 {[%emt 0:00:06]} 4. g3 {[%emt 0:00:02]} Bg7 {[%emt 0:00:02]} 5. Bg2 {[%emt 0:00:01]} Nf6 {[%emt 0:00:07]} 6. O-O {[%emt 0:00:02]} O-O {[%emt 0:00:06]} 7. c3 {[%emt 0:00:03]} e5 {[%emt 0:00:46]} 8. Re1 d5 {[%emt 0:00:00]} 9. Nbd2 {[%emt 0:00:11]} h6 {[%emt 0:00:16]} 10. a3 {[%emt 0:00:01]} a5 {[%emt 0:00:24]} 11. a4 {[%emt 0:00:01]} b6 {[%emt 0:00:21]} 12. exd5 {[%emt 0:00:05]} Nxd5 {[%emt 0:00:02]} 13. Nc4 {[%emt 0:00:01]} Re8 {[%emt 0:00:19]} 14. Bd2 {[%emt 0:00:25]} Ba6 {[%emt 0:00:31]} 15. Qb3 {[%emt 0:00:04]} Bb7 {[%emt 0:01:08]} 16. Rad1 {[%emt 0:00:06]} Kh7 {[%emt 0:00:09]} 17. Bc1 {[%emt 0:00:07]} f5 {[%emt 0:00:09]} 18. Qc2 {[%emt 0:00:10]} Qc7 {[%emt 0:00:35]} 19. h4 {[%emt 0:00:52]} Rad8 {[%emt 0:00:04]} 20. Re2 {[%emt 0:00:20]} Nf6 {[%emt 0:00:54]} 21. Rde1 {[%emt 0:00:16]} Ng4 {[%emt 0:00:06]} 22. h5 {[%emt 0:00:09]} g5 {[%emt 0:00:19]} 23. Nh2 {[%emt 0:00:46]} Nxh2 24. Kxh2 {[%emt 0:00:01]} Re7 {[%emt 0:01:00]} 25. Kg1 {[%emt 0:00:28]} Kh8 {[%emt 0:00:28]} 26. Ne3 {[%emt 0:00:02]} Rf7 {[%emt 0:00:45]} 27. Nd5 {[%emt 0:00:01]} Qd6 {[%emt 0:00:01]} 28. f4 {[%emt 0:01:02]} gxf4 {[%emt 0:01:14]} 29. gxf4 {[%emt 0:00:01]} Nb4 {[%emt 0:00:08]} 30. Nxb4 {[%emt 0:00:39]} axb4 {[%emt 0:00:47]} 31. fxe5 {[%emt 0:00:18]} Qxd3 {[%emt 0:00:06]} 32. Qxd3 {[%emt 0:00:03]} Rxd3 {[%emt 0:00:02]} 33. e6 {[%emt 0:00:01]} Re7 {[%emt 0:00:01]} 34. Bxb7 {[%emt 0:00:01]} bxc3 {[%emt 0:00:10]} 35. bxc3 {[%emt 0:00:20]} Bxc3 {[%emt 0:01:10]} 36. Bb2 {[%emt 0:00:23]} Bxb2 {[%emt 0:00:07]} 37. Rxb2 {[%emt 0:00:02]} Rd6 {[%emt 0:00:07]} 38. Bc8 {[%emt 0:00:29]} Rd8 {[%emt 0:00:05]} 39. Ba6 {[%emt 0:00:16]} Rd6 {[%emt 0:00:02]} 40. Bc4 {[%emt 0:00:58]} Rd4 {[%emt 0:00:04]} 41. Rc1 {[%emt 0:01:38]} Rg7+ {[%emt 0:00:11]} 42. Rg2 {[%emt 0:00:19]} Rdg4 {[%emt 0:00:04]} 43. Rxg4 {[%emt 0:00:14]} Rxg4+ {[%emt 0:00:01]} 44. Kf2 {[%emt 0:00:01]} Rf4+ {[%emt 0:00:06]} 45. Kg3 {[%emt 0:00:14]} Re4 {[%emt 0:00:08]} 46. Kf3 {[%emt 0:00:07]} Kg7 {[%emt 0:00:04]} 47. Rg1+ {[%emt 0:00:51]} Kf8 {[%emt 0:00:01]} 48. Bd5 {[%emt 0:00:04]} Re5 {[%emt 0:00:03]} 49. Rd1 {[%emt 0:00:01]} Ke7 {[%emt 0:00:04]} 50. Kf4 {[%emt 0:00:01]} Kf6 {[%emt 0:00:01]} 51. Kf3 {[%emt 0:00:22]} Ke7 {[%emt 0:00:14]} 52. Bc4 {[%emt 0:00:03]} Re4 {[%emt 0:00:29]} 53. Rd7+ {[%emt 0:00:06]} Kf8 {[%emt 0:00:03]} 54. Rf7+ {[%emt 0:00:02]} Kg8 {[%emt 0:00:03]} 55. e7 {[%emt 0:00:16]} Kh8 {[%emt 0:00:07]} 56. Rf8+ {[%emt 0:00:04]} 1-0

[Event "Olaine Open Rapid 2018"]
[Site "Olaine"]
[Date "2018.11.25"]
[Round "8.5"]
[White "Berzinsh, Roland"]
[Black "Bolsakovs, Vadims"]
[Result "1-0"]
[WhiteElo "2409"]
[BlackElo "2164"]
[PlyCount "31"]
[EventDate "2018.11.24"]
[EventType "swiss"]
[EventCountry "LAT"]
[TimeControl "600+5"]
[WhiteClock "0:00:11"]
[BlackClock "0:06:50"]

1. d4 {[%emt 0:00:00]} Nf6 {[%emt 0:00:00]} 2. Bf4 {[%emt 0:00:00]} d6 {[%emt 0:00:26]} 3. Nc3 {[%emt 0:00:01]} g6 {[%emt 0:00:21]} 4. e4 {[%emt 0:00:02]} Bg7 {[%emt 0:00:21]} 5. Qd2 {[%emt 0:00:01]} h6 {[%emt 0:01:15]} 6. O-O-O {[%emt 0:00:43]} Nbd7 {[%emt 0:01:43]} 7. Nf3 {[%emt 0:01:00]} Nh5 {[%emt 0:01:59]} 8. Be3 {[%emt 0:00:12]} e5 {[%emt 0:01:31]} 9. dxe5 {[%emt 0:00:06]} dxe5 {[%emt 0:00:53]} 10. g4 {[%emt 0:00:49]} Nf4 {[%emt 0:00:16]} 11. Nxe5 {[%emt 0:00:42]} Bxe5 {[%emt 0:00:24]} 12. Bxf4 {[%emt 0:00:02]} Qf6 {[%emt 0:01:10]} 13. Nd5 {[%emt 0:00:17]} Qd6 {[%emt 0:00:16]} 14. Bxe5 {[%emt 0:00:17]} Nxe5 {[%emt 0:00:07]} 15. f4 {[%emt 0:00:01]} Nf3 {[%emt 0:00:22]} 16. Qc3 {[%emt 0:00:17]} 1-0

[Event "Olaine Open Rapid 2018"]
[Site "Olaine"]
[Date "2018.11.25"]
[Round "8.6"]
[White "Jazdanovs, Aleksandrs"]
[Black "Volodins, Igors"]
[Result "1/2-1/2"]
[WhiteElo "2098"]
[BlackElo "2186"]
[PlyCount "35"]
[EventDate "2018.11.24"]
[EventType "swiss"]
[EventCountry "LAT"]
[TimeControl "600+5"]
[WhiteClock "0:04:38"]
[BlackClock "0:09:07"]

1. e4 {[%emt 0:00:00]} e5 {[%emt 0:00:14]} 2. Nf3 {[%emt 0:00:00]} Nc6 {[%emt 0:00:01]} 3. Bb5 {[%emt 0:00:00]} a6 {[%emt 0:00:02]} 4. Ba4 {[%emt 0:00:00]} d6 {[%emt 0:00:21]} 5. O-O {[%emt 0:00:09]} Bd7 {[%emt 0:00:19]} 6. c3 {[%emt 0:00:04]} Nge7 {[%emt 0:00:06]} 7. d4 {[%emt 0:00:03]} Ng6 {[%emt 0:00:01]} 8. dxe5 {[%emt 0:00:30]} Ncxe5 {[%emt 0:01:20]} 9. Nxe5 {[%emt 0:00:08]} dxe5 {[%emt 0:00:25]} 10. Bg5 {[%emt 0:00:20]} Be7 {[%emt 0:01:01]} 11. Bxe7 {[%emt 0:00:18]} Qxe7 {[%emt 0:00:05]} 12. Qxd7+ {[%emt 0:00:04]} Qxd7 {[%emt 0:00:01]} 13. Bxd7+ {[%emt 0:00:01]} Kxd7 {[%emt 0:00:01]} 14. Rd1+ {[%emt 0:00:11]} Ke6 {[%emt 0:00:02]} 15. g3 {[%emt 0:00:02]} Rhd8 {[%emt 0:00:16]} 16. Na3 {[%emt 0:00:03]} Ne7 {[%emt 0:01:22]} 17. f3 {[%emt 0:00:13]} Nc6 {[%emt 0:01:10]} 18. Nc4 {[%emt 0:00:17]} 1/2-1/2

[Event "Olaine Open Rapid 2018"]
[Site "Olaine"]
[Date "2018.11.25"]
[Round "9.2"]
[White "Lavendelis, Egons"]
[Black "Kolasa, Pjotrs"]
[Result "1-0"]
[WhiteElo "2290"]
[BlackElo "2108"]
[PlyCount "107"]
[EventDate "2018.11.24"]
[EventType "swiss"]
[EventCountry "LAT"]
[TimeControl "600+5"]
[WhiteClock "0:01:26"]
[BlackClock "0:00:46"]

1. e4 {[%emt 0:00:00]} e5 {[%emt 0:00:00]} 2. Nf3 {[%emt 0:00:00]} Nc6 {[%emt 0:00:00]} 3. d4 {[%emt 0:00:01]} exd4 {[%emt 0:00:01]} 4. Bc4 {[%emt 0:00:01]} Nf6 {[%emt 0:00:03]} 5. e5 {[%emt 0:00:04]} Ng4 {[%emt 0:00:10]} 6. Qe2 {[%emt 0:00:03]} Qe7 {[%emt 0:00:08]} 7. Bf4 {[%emt 0:00:19]} f6 {[%emt 0:00:02]} 8. exf6 {[%emt 0:00:10]} Qxe2+ {[%emt 0:00:09]} 9. Kxe2 {[%emt 0:00:30]} Nxf6 {[%emt 0:00:09]} 10. Rd1 {[%emt 0:00:08]} d5 {[%emt 0:00:20]} 11. Bb5 {[%emt 0:00:07]} a6 {[%emt 0:00:11]} 12. Bxc6+ {[%emt 0:01:54]} bxc6 {[%emt 0:00:02]} 13. Nxd4 {[%emt 0:00:15]} c5 {[%emt 0:01:34]} 14. Nf3 {[%emt 0:01:06]} Bd6 {[%emt 0:00:05]} 15. Bxd6 {[%emt 0:00:40]} cxd6 {[%emt 0:00:02]} 16. Nbd2 {[%emt 0:00:54]} Bf5 {[%emt 0:00:31]} 17. c3 {[%emt 0:00:09]} Kd7 {[%emt 0:00:45]} 18. Nf1 {[%emt 0:00:07]} Rhe8+ {[%emt 0:00:09]} 19. Ne3 {[%emt 0:00:02]} Rab8 {[%emt 0:00:19]} 20. b3 {[%emt 0:00:07]} Kc6 {[%emt 0:01:14]} 21. Kf1 {[%emt 0:00:20]} Bg6 {[%emt 0:00:23]} 22. Rac1 {[%emt 0:00:18]} a5 {[%emt 0:00:03]} 23. h3 {[%emt 0:00:57]} Be4 {[%emt 0:00:20]} 24. Ng1 {[%emt 0:00:17]} Rf8 {[%emt 0:01:19]} 25. Ne2 {[%emt 0:00:08]} Nh5 {[%emt 0:00:07]} 26. Kg1 {[%emt 0:00:23]} Rbe8 {[%emt 0:00:24]} 27. Rd2 {[%emt 0:00:34]} Rf7 {[%emt 0:00:20]} 28. Rcd1 {[%emt 0:00:21]} g5 {[%emt 0:00:39]} 29. b4 {[%emt 0:00:19]} Nf4 {[%emt 0:00:05]} 30. Nxf4 {[%emt 0:00:16]} gxf4 {[%emt 0:00:02]} 31. Nxd5 {[%emt 0:00:03]} Bxd5 {[%emt 0:00:10]} 32. Rxd5 {[%emt 0:00:01]} axb4 {[%emt 0:00:01]} 33. cxb4 {[%emt 0:00:04]} Re6 {[%emt 0:00:15]} 34. bxc5 {[%emt 0:00:19]} dxc5 {[%emt 0:00:01]} 35. Kf1 {[%emt 0:00:13]} Ra7 {[%emt 0:00:04]} 36. R5d2 {[%emt 0:00:04]} Ra3 {[%emt 0:00:04]} 37. Rc1 {[%emt 0:00:06]} Re5 {[%emt 0:00:11]} 38. f3 {[%emt 0:00:29]} Rd5 {[%emt 0:00:23]} 39. Re2 {[%emt 0:00:10]} Rd4 {[%emt 0:00:08]} 40. Rcc2 {[%emt 0:00:07]} Rda4 {[%emt 0:00:29]} 41. Re6+ {[%emt 0:00:07]} Kd5 {[%emt 0:00:06]} 42. Ree2 {[%emt 0:00:45]} Rd4 {[%emt 0:00:32]} 43. Re7 {[%emt 0:00:08]} Rda4 {[%emt 0:00:24]} 44. Rd7+ {[%emt 0:00:06]} Kc6 {[%emt 0:00:03]} 45. Rdd2 {[%emt 0:00:06]} c4 {[%emt 0:00:03]} 46. Rd4 {[%emt 0:00:06]} Kc5 {[%emt 0:00:01]} 47. Rxf4 {[%emt 0:00:03]} Rxa2 {[%emt 0:00:00]} 48. Rfxc4+ {[%emt 0:00:04]} Rxc4 {[%emt 0:00:08]} 49. Rxa2 {[%emt 0:00:01]} Kd4 {[%emt 0:00:09]} 50. Re2 {[%emt 0:00:05]} Kd3 {[%emt 0:00:04]} 51. Kf2 {[%emt 0:00:01]} h5 {[%emt 0:00:03]} 52. Re3+ {[%emt 0:00:04]} Kd2 {[%emt 0:00:01]} 53. Re5 {[%emt 0:00:01]} h4 {[%emt 0:00:03]} 54. Re4 {[%emt 0:00:01]} 1-0

[Event "Olaine Open Rapid 2018"]
[Site "Olaine"]
[Date "2018.11.25"]
[Round "9.3"]
[White "Ivanov, Igor"]
[Black "Antoms, Guntars"]
[Result "0-1"]
[WhiteElo "2142"]
[BlackElo "2340"]
[PlyCount "76"]
[EventDate "2018.11.24"]
[EventType "swiss"]
[EventCountry "LAT"]
[TimeControl "600+5"]
[WhiteClock "0:04:57"]
[BlackClock "0:00:10"]

1. b3 {[%emt 0:00:00]} e5 {[%emt 0:00:01]} 2. Bb2 {[%emt 0:00:00]} d6 {[%emt 0:00:03]} 3. e3 {[%emt 0:00:07]} f5 {[%emt 0:00:04]} 4. c4 {[%emt 0:01:07]} Nf6 {[%emt 0:00:19]} 5. d4 {[%emt 0:00:02]} Nbd7 {[%emt 0:00:04]} 6. Nf3 {[%emt 0:00:14]} Qe7 {[%emt 0:00:22]} 7. Nc3 {[%emt 0:00:30]} c6 {[%emt 0:00:03]} 8. Ba3 {[%emt 0:00:36]} e4 {[%emt 0:00:31]} 9. Nh4 {[%emt 0:01:07]} g6 {[%emt 0:00:10]} 10. g3 {[%emt 0:01:28]} Bg7 {[%emt 0:00:04]} 11. Ng2 {[%emt 0:00:36]} O-O {[%emt 0:00:23]} 12. Rc1 {[%emt 0:00:25]} Rd8 {[%emt 0:00:15]} 13. Be2 {[%emt 0:00:20]} Nf8 {[%emt 0:00:17]} 14. h4 {[%emt 0:00:27]} Qf7 {[%emt 0:00:26]} 15. d5 {[%emt 0:01:07]} c5 {[%emt 0:00:07]} 16. Bb2 {[%emt 0:00:32]} N6d7 {[%emt 0:00:15]} 17. Qc2 {[%emt 0:00:55]} Ne5 {[%emt 0:00:10]} 18. Na4 {[%emt 0:00:28]} Bd7 {[%emt 0:00:08]} 19. Bxe5 {[%emt 0:00:05]} Bxe5 {[%emt 0:00:03]} 20. Nc3 {[%emt 0:00:07]} a6 {[%emt 0:00:12]} 21. Nf4 {[%emt 0:00:12]} Rab8 {[%emt 0:00:05]} 22. Nh3 {[%emt 0:00:33]} b5 {[%emt 0:00:16]} 23. h5 {[%emt 0:00:21]} Qg7 {[%emt 0:00:43]} 24. hxg6 {[%emt 0:00:24]} hxg6 {[%emt 0:00:27]} 25. Nf4 {[%emt 0:00:05]} b4 {[%emt 0:00:27]} 26. Nb1 {[%emt 0:00:13]} a5 {[%emt 0:00:00]} 27. Kd2 {[%emt 0:00:06]} a4 {[%emt 0:00:00]} 28. g4 {[%emt 0:00:03]} fxg4 {[%emt 0:00:07]} 29. Rcg1 {[%emt 0:00:01]} axb3 {[%emt 0:00:18]} 30. Qxb3 {[%emt 0:00:02]} Bc3+ {[%emt 0:00:54]} 31. Kd1 {[%emt 0:00:13]} Ra8 {[%emt 0:00:01]} 32. Bxg4 {[%emt 0:00:03]} Ba4 {[%emt 0:00:02]} 33. Ne6 {[%emt 0:00:08]} Bxb3+ {[%emt 0:00:13]} 34. axb3 {[%emt 0:00:01]} Nxe6 {[%emt 0:00:20]} 35. Bxe6+ {[%emt 0:00:02]} Kf8 {[%emt 0:00:00]} 36. Rg4 {[%emt 0:00:13]} Ra1 {[%emt 0:00:10]} 37. Rf4+ {[%emt 0:00:04]} Ke7 {[%emt 0:00:07]} 38. Kc2 {[%emt 0:00:03]} Rda8 {[%emt 0:00:06]} 0-1

[Event "Olaine Open Rapid 2018"]
[Site "Olaine"]
[Date "2018.11.25"]
[Round "9.5"]
[White "Ramma, Kaspars"]
[Black "Smorodinskis, Igors"]
[Result "1-0"]
[WhiteElo "2107"]
[BlackElo "2209"]
[PlyCount "125"]
[EventDate "2018.11.24"]
[EventType "swiss"]
[EventCountry "LAT"]
[TimeControl "600+5"]
[WhiteClock "0:01:43"]
[BlackClock "0:01:29"]

1. d4 {[%emt 0:00:00]} Nf6 {[%emt 0:00:00]} 2. Bf4 {[%emt 0:00:02]} g6 {[%emt 0:00:01]} 3. e3 {[%emt 0:00:02]} Bg7 {[%emt 0:00:01]} 4. Nf3 {[%emt 0:00:02]} O-O {[%emt 0:00:03]} 5. Be2 {[%emt 0:00:02]} d5 {[%emt 0:00:03]} 6. h3 {[%emt 0:00:03]} c5 {[%emt 0:00:07]} 7. c3 {[%emt 0:00:03]} b6 {[%emt 0:00:08]} 8. Nbd2 {[%emt 0:00:17]} Nc6 {[%emt 0:00:04]} 9. O-O {[%emt 0:00:10]} Nd7 {[%emt 0:00:15]} 10. Qa4 {[%emt 0:00:54]} Bb7 {[%emt 0:00:09]} 11. Rad1 {[%emt 0:00:41]} a6 {[%emt 0:00:24]} 12. Qb3 {[%emt 0:00:25]} c4 {[%emt 0:01:07]} 13. Qc2 {[%emt 0:00:07]} b5 {[%emt 0:00:05]} 14. e4 {[%emt 0:00:20]} e6 {[%emt 0:00:20]} 15. Rfe1 {[%emt 0:00:33]} b4 {[%emt 0:00:23]} 16. exd5 {[%emt 0:00:26]} exd5 {[%emt 0:00:01]} 17. Nf1 {[%emt 0:00:19]} Re8 {[%emt 0:00:13]} 18. Ne3 {[%emt 0:00:19]} Nb6 {[%emt 0:00:13]} 19. Ng4 {[%emt 0:00:20]} f6 {[%emt 0:01:05]} 20. h4 {[%emt 0:00:22]} Qd7 {[%emt 0:00:22]} 21. Ne3 {[%emt 0:00:08]} a5 {[%emt 0:00:17]} 22. Nh2 {[%emt 0:00:07]} a4 {[%emt 0:00:22]} 23. a3 {[%emt 0:00:08]} bxa3 {[%emt 0:00:13]} 24. bxa3 {[%emt 0:00:01]} Na5 {[%emt 0:00:04]} 25. h5 {[%emt 0:00:22]} Qf7 {[%emt 0:00:11]} 26. hxg6 {[%emt 0:01:03]} hxg6 {[%emt 0:00:10]} 27. Nf3 {[%emt 0:00:21]} Re4 {[%emt 0:00:59]} 28. Bd6 {[%emt 0:00:19]} Nb3 {[%emt 0:00:07]} 29. g3 {[%emt 0:00:28]} Re6 {[%emt 0:00:16]} 30. Bb4 {[%emt 0:00:08]} Bf8 {[%emt 0:00:08]} 31. Bxf8 {[%emt 0:00:12]} Rxf8 {[%emt 0:00:06]} 32. Nh4 {[%emt 0:00:14]} Kg7 {[%emt 0:00:58]} 33. Bg4 {[%emt 0:00:10]} Re4 {[%emt 0:00:37]} 34. f3 {[%emt 0:00:19]} Ree8 {[%emt 0:00:14]} 35. Neg2 {[%emt 0:00:52]} f5 {[%emt 0:00:11]} 36. Bh3 {[%emt 0:00:09]} Rxe1+ {[%emt 0:00:23]} 37. Rxe1 {[%emt 0:00:01]} Re8 {[%emt 0:00:01]} 38. Rxe8 {[%emt 0:00:22]} Qxe8 {[%emt 0:00:00]} 39. g4 {[%emt 0:00:03]} fxg4 {[%emt 0:00:10]} 40. Bxg4 {[%emt 0:00:03]} Bc8 {[%emt 0:00:06]} 41. Kh2 {[%emt 0:00:23]} Bxg4 {[%emt 0:00:06]} 42. fxg4 {[%emt 0:00:01]} Nd7 {[%emt 0:00:12]} 43. Nf4 {[%emt 0:00:06]} Nf8 {[%emt 0:00:12]} 44. Qf2 {[%emt 0:00:43]} Qf7 {[%emt 0:00:12]} 45. Qe3 {[%emt 0:00:03]} Na5 {[%emt 0:00:15]} 46. Qe5+ {[%emt 0:00:10]} Kh7 {[%emt 0:00:09]} 47. Nf3 {[%emt 0:00:07]} Kg8 {[%emt 0:00:12]} 48. Kg3 {[%emt 0:00:09]} Nc6 {[%emt 0:00:16]} 49. Qd6 {[%emt 0:00:07]} Na7 {[%emt 0:00:16]} 50. Nxd5 {[%emt 0:00:08]} Nb5 {[%emt 0:00:05]} 51. Ne7+ {[%emt 0:00:10]} Kg7 {[%emt 0:00:05]} 52. Qe5+ {[%emt 0:00:04]} Qf6 {[%emt 0:00:01]} 53. Qxb5 {[%emt 0:00:08]} Qxe7 {[%emt 0:00:01]} 54. Qe5+ {[%emt 0:00:01]} Kf7 {[%emt 0:00:08]} 55. Qxe7+ {[%emt 0:00:05]} Kxe7 {[%emt 0:00:01]} 56. Ne5 {[%emt 0:00:03]} Ke6 {[%emt 0:00:06]} 57. Nxc4 {[%emt 0:00:02]} Kd5 {[%emt 0:00:01]} 58. Nd2 {[%emt 0:00:02]} Ne6 {[%emt 0:00:11]} 59. Kf3 {[%emt 0:00:04]} g5 {[%emt 0:00:07]} 60. Ke3 {[%emt 0:00:03]} Nf4 {[%emt 0:00:08]} 61. c4+ {[%emt 0:00:02]} Ke6 {[%emt 0:00:04]} 62. Ne4 {[%emt 0:00:06]} Nh3 {[%emt 0:00:02]} 63. Nc5+ {[%emt 0:00:02]} 1-0

[Event "Olaine Open Rapid 2018"]
[Site "Olaine"]
[Date "2018.11.25"]
[Round "9.6"]
[White "Volodins, Igors"]
[Black "Rogule, Laura"]
[Result "*"]
[WhiteElo "2186"]
[BlackElo "2263"]
[PlyCount "34"]
[EventDate "2018.11.24"]
[EventType "swiss"]
[EventCountry "LAT"]
[TimeControl "600+5"]
[WhiteClock "0:02:45"]
[BlackClock "0:00:34"]

1. g3 {[%emt 0:00:00]} d5 {[%emt 0:00:00]} 2. Bg2 {[%emt 0:00:00]} c6 {[%emt 0:00:00]} 3. c4 {[%emt 0:00:01]} Nf6 {[%emt 0:00:20]} 4. b3 {[%emt 0:01:47]} dxc4 {[%emt 0:01:59]} 5. bxc4 {[%emt 0:00:01]} Qd4 {[%emt 0:00:52]} 6. Nc3 {[%emt 0:01:26]} Qxc4 {[%emt 0:00:11]} 7. Nf3 {[%emt 0:00:02]} Nbd7 {[%emt 0:00:17]} 8. Bb2 {[%emt 0:02:34]} e5 {[%emt 0:00:31]} 9. d3 {[%emt 0:00:02]} Qa6 {[%emt 0:00:38]} 10. O-O {[%emt 0:00:22]} Ba3 {[%emt 0:00:49]} 11. Rb1 {[%emt 0:00:24]} Bxb2 {[%emt 0:01:03]} 12. Rxb2 {[%emt 0:00:00]} O-O {[%emt 0:00:08]} 13. Nd2 {[%emt 0:01:06]} Qa3 {[%emt 0:00:37]} 14. Nc4 {[%emt 0:00:09]} Qxc3 {[%emt 0:01:00]} 15. Qa1 {[%emt 0:02:47]} Qd4 {[%emt 0:01:51]} 16. e3 Qxd3 17. Rc1 Nb6 {[%emt 0:00:01]} *